[Event "13th Palmanova Festival A 2024"]
[Site "Palmanova"]
[Date "2024.12.29"]
[Round "3.1"]
[White "Domalchuk-Jonasson, Aleksandr"]
[Black "Zamengo, Fulvio"]
[Result "0-1"]
[ECO "B21"]
[WhiteElo "2377"]
[BlackElo "2348"]
[Annotator "TA"]
[PlyCount "80"]
[EventDate "2024.12.27"]
[EventCountry "ITA"]
[SourceTitle "playchess.com"]
[Source "ChessBase"]
[SourceQuality "1"]
[TimeControl "6000+30"]

{[%evp 9,80,-16,-5,-3,0,-9,0,0,-4,-2,12,20,14,23,42,45,35,32,32,28,54,7,25,0,13,6,0,19,37,33,94,79,85,0,52,46,64,-48,-38,-47,-41,-37,0,0,0,-67,-67,-77,-75,-212,-213,-292,-302,-285,-223,-247,-204,-276,-243,-316,-324,-384,-364,-382,-375,-1087,-1062,-5406,-5310,-29994,-29995,-29998,-29999]} 1. e4 {[%emt 0:04:52]} c5 {[%emt 0:04:41]} 2. Be2 {[%emt 0:01:41]} Nc6 {[%emt 0:00:37]} 3. f4 {[%emt 0:00:06]} e6 {[%emt 0:00:33]} 4. Nf3 {[%emt 0:00:47]} d5 {[%emt 0:00:07]} 5. d3 {[%emt 0:00:19]} Bd6 {[%emt 0:04:30]} 6. O-O $1 {[%emt 0:00:54]} Nge7 {[%emt 0:00:06]} 7. c3 {[%emt 0:01:28]} O-O {[%emt 0:02:17]} 8. Be3 {[%emt 0:10:49] The position is equal.} f6 {[%emt 0:00:20]} 9. g3 {[%emt 0:00:53]} Bd7 {[%emt 0:12:04][%cal Bc8d7,Bd7e8,Be8f7][%mdl 32]} 10. Nbd2 {[%emt 0:01:31]} Qc7 {[%emt 0:00:19]} 11. Bf2 {[%emt 0:05:12]} Be8 {[%emt 0:02:13]} 12. a3 {[%emt 0:02:56]} Bf7 {[%emt 0:12:17]} 13. b4 {[%emt 0:01:44]} b6 {[%emt 0:00:09]} 14. Rc1 {[%emt 0:29:47]} Rfd8 {[%emt 0:03:31]} 15. Qc2 {[%emt 0:10:44]} (15. Re1 $14 {feels stronger.}) 15... Rac8 {[%emt 0:00:17]} 16. Qb2 {[%emt 0:10:23]} (16. d4 $5) 16... Ng6 {[%emt 0:33:35]} 17. d4 {[%emt 0:04:36]} dxe4 {[%emt 0:02:24]} 18. Nxe4 {[%emt 0:01:36]} cxd4 {[%emt 0:00:29][%cal Bc5d4,Bd4d3][%mdl 32]} 19. Ba6 {[%emt 0:04:02][%cal Of3d4]} Bxf4 {[%emt 0:01:46]} 20. gxf4 $16 {[%emt 0:01:01]} Qxf4 {[%emt 0:00:07]} 21. Qe2 {[%emt 0:09:44]} (21. Nxd4 $2 Qxe4 22. Qe2 Qxe2 23. Nxe2 Rc7 $19) ({Better is} 21. Nfd2 $16 {[%cal Rc3d4]} Nce5 22. Bxd4 Qg4+ 23. Kh1) 21... Qg4+ {[%emt 0:04:25]} ({Black should play} 21... d3 $11 22. Qe3 (22. Bxd3 Qg4+ 23. Kh1 Rxd3 $15) 22... Rc7) 22. Bg3 $14 {[%emt 0:00:17]} Nf4 {[%emt 0:00:07]} 23. Qe1 {[%emt 0:00:13] [#]} (23. Qd2 $1 $14 Nh3+ 24. Kg2) 23... d3 $1 $15 {[%emt 0:00:06] Hoping for ...Ne2+.} 24. Qe3 {[%emt 0:02:59]} Ne2+ {[%emt 0:00:42]} 25. Kg2 {[%emt 0:00:36]} Nxc1 {[%emt 0:09:00]} (25... Ne7 $5 26. Nf2 Qg6 27. Bxd3 Nd5 28. Qxe2 Nf4+ 29. Kh1 Nxe2 30. Bxg6 Bxg6 $16) 26. Bxc8 {[%emt 0:00:41] And now Bb7 would win.} Ne7 {[%emt 0:01:10] ...Nf5 would now be deadly. Some like it hot} 27. Bb7 {[%emt 0:02:38]} (27. Rxc1 Nd5 (27... Rxc8 28. Qxd3 e5 29. h3 $14) 28. Nxf6+ (28. Qxd3 $2 Nf4+ 29. Kg1 Rxd3 $19) 28... gxf6 $17) (27. Ba6 $1 $11 Ne2 (27... Nd5 28. Qxc1 Qxe4 29. Re1 $16) 28. Nf2 (28. Bxd3 $2 Nd5 $19)) 27... Ne2 {[%emt 0:00:39][%mdl 1024] Threatens to win with ...e5. Black has compensation.} 28. Nf2 {[%emt 0:00:42][%csl LRd3,LRg4]} Qc4 $36 {[%emt 0:00:11][%cal Oe2g3][%mdl 2048] [#] Strongly threatening ...Nxg3! White is under strong pressure. Black is more active.} 29. Be4 {[%emt 0:00:35] This costs White the game.} (29. Rd1 $17) 29... Nd5 $19 {[%emt 0:01:59]} (29... Nxc3 30. Bxd3 Qb3 31. Ra1 $11) 30. Qd2 {[%emt 0:00:22]} Bg6 {[%emt 0:01:51]} ({Less strong is} 30... Nexc3 31. Bxd3 Qb3 32. Kg1 $11) 31. Bxd5 {[%emt 0:00:22]} Rxd5 {[%emt 0:02:02]} 32. Nd1 {[%emt 0:00:16] White is weak on the light squares} Rd7 {[%emt 0:01:00]} 33. Rf2 {[%emt 0:01:14]} Qc6 {[%emt 0:01:22]} ({Not} 33... e5 34. Rxe2 dxe2 35. Qxd7 $11) 34. Kf1 {[%emt 0:00:53]} e5 {[%emt 0:01:36]} 35. Ke1 {[%emt 0:00:16]} Bh5 {[%emt 0:01:20]} 36. Qe3 {[%emt 0:00:45]} Nxc3 {[%emt 0:00:12]} 37. Nb2 {[%emt 0:00:34]} (37. Nxc3 Qxc3+ 38. Rd2) 37... Ne4 {[%emt 0:00:37][%cal Od3d2] White must now prevent ...d2+!} 38. Nxe5 {[%emt 0:00:31]} fxe5 {[%emt 0:00:32]} ({Wrong is} 38... Qc1+ $2 39. Qxc1 Re7 40. Qc4+ Bf7 41. Qxe4 $18) 39. Nxd3 {[%emt 0:00:28]} Rxd3 {[%emt 0:00:18]} 40. Qxd3 {[%emt 0:00:20]} Qc1+ {[%emt 0:00:06] Weighted Error Value: White=0.65/Black=0.14 (very precise) .  Mistake:       	White=6     	Black=2      Inaccurate:     	White=4     	Black=2      OK:         	White=10    	Black=14     Best:        	White=1     	Black=2      Strong:       	---       	Black=1} 0-1

[Event "13th Palmanova Festival A 2024"]
[Site "Palmanova"]
[Date "2024.12.29"]
[Round "3.2"]
[White "Savanovic, Aleksandar"]
[Black "Dobrovoljc, Vid"]
[Result "1/2-1/2"]
[ECO "C88"]
[WhiteElo "2354"]
[BlackElo "2365"]
[Annotator "TA"]
[PlyCount "27"]
[EventDate "2024.12.27"]
[EventCountry "ITA"]
[SourceTitle "playchess.com"]
[Source "ChessBase"]
[SourceQuality "1"]
[TimeControl "6000+30"]

{[%evp 22,27,32,19,22,31,10,17]} 1. e4 {[%emt 0:00:02]} e5 {[%emt 0:11:43]} 2. Nf3 {[%emt 0:00:20]} Nc6 {[%emt 0:00:03]} 3. Bb5 {[%emt 0:00:15][%cal Bf1b5,Bb5a4,Ba4b3][%mdl 32]} a6 {[%emt 0:00:04]} 4. Ba4 {[%emt 0:00:48]} Nf6 {[%emt 0:00:07]} 5. O-O {[%emt 0:00:09]} Be7 {[%emt 0:02:29]} 6. Re1 {[%emt 0:00:09]} b5 {[%emt 0:00:05]} 7. Bb3 {[%emt 0:00:04]} O-O {[%emt 0:00:06]} 8. a4 {[%emt 0:01:59]} Bb7 {[%emt 0:02:10]} 9. d3 {[%emt 0:00:14]} Re8 {[%emt 0:04:59]} 10. Nc3 {[%emt 0:03:30]} b4 {[%emt 0:01:23]} 11. Nd5 {[%emt 0:00:07]} Na5 {[%emt 0:00:04]} 12. Nxe7+ {[%emt 0:00:07]} (12. Nxe5 Nxb3 13. cxb3 Nxd5 14. exd5 Bxd5 $11) 12... Qxe7 {[%emt 0:00:04]} 13. Ba2 {[%emt 0:00:09]} d5 {[%emt 0:00:49]} 14. Bg5 {[%emt 0:00:07] Not much happened in this game.   OK:         	White=2     	Black=1} 1/2-1/2

[Event "13th Palmanova Festival A 2024"]
[Site "Palmanova"]
[Date "2024.12.29"]
[Round "3.3"]
[White "Bettalli, Francesco"]
[Black "Cina`, Vittorio"]
[Result "1/2-1/2"]
[ECO "C45"]
[WhiteElo "2359"]
[BlackElo "2325"]
[Annotator "TA"]
[PlyCount "60"]
[EventDate "2024.12.27"]
[EventCountry "ITA"]
[SourceTitle "playchess.com"]
[Source "ChessBase"]
[SourceQuality "1"]
[TimeControl "6000+30"]

{[%evp 9,60,10,6,3,10,18,14,8,17,13,19,21,20,18,34,1,13,0,19,-68,-68,-59,-45,-49,-38,-55,-11,-49,-31,-54,-16,-8,-18,-16,-12,-35,-19,-58,-50,-58,0,-100,-93,-118,-120,-122,-20,-25,-27,-16,-17,-16,52]} 1. e4 {[%emt 0:16:09]} e5 {[%emt 0:00:07]} 2. Nf3 {[%emt 0:00:26]} Nc6 {[%emt 0:00:08]} 3. d4 {[%emt 0:00:34]} exd4 {[%emt 0:00:05]} 4. Nxd4 {[%emt 0:00:06]} Qf6 {[%emt 0:00:11]} 5. Nf3 {[%emt 0:00:44]} Bb4+ {[%emt 0:00:05][%cal Bf8b4,Bb4c5,Bc5b6][%mdl 32]} 6. c3 {[%emt 0:00:03]} Bc5 {[%emt 0:00:05]} 7. Be2 {[%emt 0:00:09]} h6 {[%emt 0:00:13]} 8. O-O {[%emt 0:00:14]} Nge7 {[%emt 0:00:14][%cal Bg8e7,Be7g6,Bg6f4][%mdl 32]} 9. Qc2 {[%emt 0:00:55]} O-O {[%emt 0:05:28]} 10. b4 {[%emt 0:01:27][%cal Bb2b4,Bb4b5][%mdl 32]} Bb6 $1 {[%emt 0:00:08]} (10... Bxb4 11. cxb4 Nxb4 12. Qd2 $18 (12. Qxc7 Qxa1 13. Nc3 Nbc6 $15)) 11. Bb2 {[%emt 0:03:09]} Ng6 {[%emt 0:07:04]} 12. b5 {[%emt 0:08:25]} Nce5 {[%emt 0:03:44]} 13. Nxe5 {[%emt 0:00:36]} Qxe5 {[%emt 0:03:02]} 14. Nd2 {[%emt 0:05:27]} ({Better is} 14. c4 $11 Qg5 15. a4) 14... Nf4 $15 {[%emt 0:09:06]} 15. Nf3 {[%emt 0:00:55]} Qe6 {[%emt 0:07:31]} 16. Nd4 {[%emt 0:05:39]} Qg6 {[%emt 0:01:37][%csl Gf4][%cal Rg6g2]} 17. Bf3 {[%emt 0:03:37]} d5 {[%emt 0:04:57] and ...Bxd4 should not be overlooked} 18. Kh1 {[%emt 0:10:53]} Re8 {[%emt 0:19:05][%cal Rd5e4]} 19. Rae1 {[%emt 0:05:29]} Bg4 {[%emt 0:07:33]} 20. Bxg4 {[%emt 0:01:50]} Qxg4 {[%emt 0:00:05][%csl Gf4][%cal Rg4g2]} 21. f3 {[%emt 0:00:08]} Qd7 $36 {[%emt 0:02:22][%mdl 2048] White is under pressure.} 22. g3 {[%emt 0:16:37]} Ne6 {[%emt 0:02:54]} 23. Nxe6 {[%emt 0:03:26]} (23. Nf5 {is more complex.} dxe4 24. Rxe4 Qxb5 25. Nxh6+ gxh6 26. c4) 23... Rxe6 {[%emt 0:05:04]} 24. Qd3 {[%emt 0:02:57]} Qe7 {[%emt 0:05:54]} (24... c6 $15) 25. c4 {[%emt 0:03:31]} (25. Qxd5 $11 Rd8 26. Qxb7) 25... dxe4 $17 {[%emt 0:01:37]} 26. fxe4 {[%emt 0:00:13]} Rd8 {[%emt 0:02:19]} 27. Qf3 {[%emt 0:00:15]} f6 {[%emt 0:02:26]} ({Inferior is} 27... Rd2 28. Qc3 (28. Bxg7 $2 Kxg7 29. e5 Rd4 $19) 28... Rd4 29. c5 Bxc5 30. Ba3 Bxa3 31. Qxd4 $16) ({Black should try} 27... Bd4 $17 28. Bc1 Qe8) 28. e5 $1 $11 {[%emt 0:07:20]} fxe5 {[%emt 0:01:59]} 29. Ba3 $1 {[%emt 0:00:08]} Qe8 {[%emt 0:05:54]} 30. Qxb7 {[%emt 0:00:22] Threatens to win with Rf8+.} c5 {[%emt 0:00:51]} (30... Qg6 $11) 1/2-1/2

[Event "13th Palmanova Festival A 2024"]
[Site "Palmanova"]
[Date "2024.12.29"]
[Round "3.4"]
[White "Sepehrkhoui, Ardeshir"]
[Black "Gkoumas, Georgios"]
[Result "1/2-1/2"]
[ECO "D30"]
[WhiteElo "2266"]
[BlackElo "2449"]
[Annotator "TA"]
[PlyCount "91"]
[EventDate "2024.12.27"]
[EventCountry "ITA"]
[SourceTitle "playchess.com"]
[Source "ChessBase"]
[SourceQuality "1"]
[TimeControl "6000+30"]

{[%evp 9,91,7,-3,-11,0,-11,0,0,0,-23,-13,-20,0,-11,0,0,0,-42,-18,-50,-61,-53,-15,-2,-14,-11,-22,-70,0,18,27,0,0,0,101,91,104,87,147,103,139,106,97,0,0,0,0,0,73,85,86,83,113,62,88,23,22,31,115,60,64,69,63,34,41,27,56,0,0,0,0,0,5,0,0,-4,0,0,0,0,0,0,0,0]} 1. d4 {[%emt 0:00:03]} Nf6 {[%emt 0:05:26]} 2. Nf3 {[%emt 0:00:09]} d5 {[%emt 0:00:14]} 3. c4 {[%emt 0:00:15]} e6 {[%emt 0:00:06]} 4. Qc2 {[%emt 0:00:09]} dxc4 {[%emt 0:00:26]} 5. e3 {[%emt 0:02:46]} c5 {[%emt 0:00:42]} 6. dxc5 {[%emt 0:08:08]} Bxc5 {[%emt 0:00:39]} 7. Bxc4 {[%emt 0:00:10]} O-O {[%emt 0:00:40]} 8. O-O {[%emt 0:00:22][%cal Oc4e6]} b6 {[%emt 0:13:08]} 9. a3 {[%emt 0:12:31]} Bb7 {[%emt 0:01:15]} 10. Nbd2 {[%emt 0:06:46]} a5 {[%emt 0:10:46]} 11. b3 {[%emt 0:02:42]} Qe7 {[%emt 0:00:46]} 12. Bb2 {[%emt 0:00:07]} Nbd7 {[%emt 0:01:57]} 13. Ng5 {[%emt 0:18:21]} Rac8 {[%emt 0:16:09][%cal Ob6b5]} 14. Nde4 {[%emt 0:17:07]} Nxe4 {[%emt 0:01:32]} 15. Nxe4 {[%emt 0:00:18]} Qh4 {[%emt 0:00:03]} (15... b5 $5 16. Bd3 (16. Bxb5 $2 Bd4 $19) 16... b4 17. axb4 (17. Nxc5 Nxc5 18. axb4 Nxd3 $17) 17... Bxb4 $15) 16. Qc3 {[%emt 0:12:37][%csl Gb2][%cal Rc3g7]} Qh6 {[%emt 0:08:49]} 17. Nxc5 {[%emt 0:01:58]} Rxc5 {[%emt 0:00:11]} 18. Qd4 {[%emt 0:00:24] [#]} (18. Qd2 $11 Ne5 19. Bxe5 Rxe5 20. f4) 18... Rg5 {[%emt 0:15:29]} 19. f3 $11 {[%emt 0:11:17]} (19. Qxd7 $2 Rxg2+ 20. Kh1 Qxh2#) 19... Qh3 {[%emt 0:20:28]} 20. g3 {[%emt 0:02:07][%cal Of1f2]} (20. Rf2 $5 Bxf3 21. Bf1 $15) 20... Ne5 {[%emt 0:02:34]} 21. e4 {[%emt 0:03:28]} Rh5 {[%emt 0:02:08]} (21... Rxg3+ $11 22. hxg3 Qxg3+ 23. Kh1 Qh3+ 24. Kg1 Qg3+) 22. Rf2 $16 {[%emt 0:02:46]} Nxf3+ {[%emt 0:03:22]} 23. Rxf3 {[%emt 0:00:07][%csl Gb2][%cal Rd4g7]} Qxh2+ {[%emt 0:00:02]} 24. Kf1 {[%emt 0:00:06][%csl Gb2][%cal Rd4g7]} Qh3+ {[%emt 0:00:31]} 25. Ke1 {[%emt 0:04:38][%csl Gb2][%cal Rd4g7]} Qg4 {[%emt 0:00:12][%csl LRe4,LRf3]} 26. Be2 {[%emt 0:00:31]} (26. Qe3 $16) 26... Rh1+ $1 $11 {[%emt 0:01:00]} (26... Bxe4 $2 27. Re3 Rh1+ 28. Kd2 $18) 27. Kf2 {[%emt 0:02:16]} Rh2+ {[%emt 0:00:15]} 28. Ke1 {[%emt 0:00:02][%cal Of3e3]} Rxe2+ {[%emt 0:02:20]} 29. Kxe2 $16 {[%emt 0:00:01][%cal Oe2f2] aiming for Kf2!.} Bxe4 {[%emt 0:00:04]} 30. Raf1 $1 {[%emt 0:01:02][%cal Oe2e1]} Rc8 {[%emt 0:00:01][%cal Oe6e5] [#]} 31. Bc3 {[%emt 0:00:23]} (31. Ke1 $1 $16 Bxf3 32. Rxf3 (32. Qxb6 $2 Qe4+ 33. Kf2 Qe2+ 34. Kg1 Qg2#)) 31... h5 {[%emt 0:01:11] [#] And now ...e5 would win.} 32. Ke3 {[%emt 0:01:07]} Bxf3 {[%emt 0:00:31]} 33. Rxf3 {[%emt 0:00:01][%cal Oe3d2]} Qg6 {[%emt 0:01:21]} (33... f6 $14) 34. Qd3 {[%emt 0:01:10] Active counter play!} (34. Kd2 $16) 34... Qg5+ $14 {[%emt 0:00:17]} 35. Kf2 {[%emt 0:00:24]} Rc5 {[%emt 0:01:26]} 36. Bd2 {[%emt 0:01:02]} Qe7 {[%emt 0:00:26]} 37. a4 {[%emt 0:00:13]} h4 {[%emt 0:00:37]} 38. gxh4 {[%emt 0:00:33]} ({Better is} 38. Kg2 $14) 38... Qxh4+ $11 {[%emt 0:00:09]} 39. Kg2 {[%emt 0:00:03][%cal Od2e1]} Rd5 {[%emt 0:01:41]} 40. Qc3 {[%emt 0:00:54]} Qe4 {[%emt 0:00:57]} 41. Bf4 {[%emt 0:00:00]} g5 {[%emt 0:00:00]} 42. Qc4 {[%emt 0:00:00]} Rd4 {[%emt 0:00:00]} 43. Qc8+ {[%emt 0:00:00]} Kg7 {[%emt 0:00:00] ( -> ...g4)} 44. Bxg5 {[%emt 0:00:00]} Qe2+ {[%emt 0:00:00]} ({Worse is} 44... Rd3 45. Bf6+ Kh6 46. Qf8+ Kh5 47. Qh8+ (47. Qxf7+ Qg6+ 48. Qxg6+ Kxg6 $18) 47... Kg6 48. Qg7+ Kh5 49. Qg5#) 45. Kg3 {[%emt 0:00:00] Intending Bf6+ and mate.} Qe1+ {[%emt 0:00:00]} 46. Kh2 $1 {[%emt 0:00:00]} 1/2-1/2

[Event "13th Palmanova Festival A 2024"]
[Site "Palmanova"]
[Date "2024.12.29"]
[Round "3.5"]
[White "Martinovici, Ilia"]
[Black "Bouska, Jiri"]
[Result "1-0"]
[ECO "D37"]
[WhiteElo "2473"]
[BlackElo "2267"]
[Annotator "TA"]
[PlyCount "94"]
[EventDate "2024.12.27"]
[EventCountry "ITA"]
[SourceTitle "playchess.com"]
[Source "ChessBase"]
[SourceQuality "1"]
[TimeControl "6000+30"]

{[%evp 9,94,19,19,28,25,27,30,28,25,26,32,30,36,33,31,26,73,52,51,-25,-30,-56,-54,-91,-57,-74,-67,-69,-72,-78,0,0,0,-294,-310,-292,-285,-306,-308,-310,-327,-347,-332,-328,-224,-212,18,19,13,-147,-59,-89,25,0,12,0,0,0,0,0,0,0,0,0,135,112,133,150,313,320,2137,2000,2068,1585,2079,2769,29970,29972,29968,29968,29990,29991,29991,29992,29995,29996,29998]} 1. d4 {[%emt 0:06:24]} d5 {[%emt 0:00:30]} 2. Nf3 {[%emt 0:00:12]} Nf6 {[%emt 0:00:08]} 3. c4 {[%emt 0:01:37]} e6 {[%emt 0:00:06]} 4. Nc3 {[%emt 0:00:24]} a6 {[%emt 0:00:25]} 5. cxd5 {[%emt 0:00:27]} exd5 {[%emt 0:00:03]} 6. Bg5 {[%emt 0:00:06]} Be6 {[%emt 0:00:17]} 7. e3 {[%emt 0:00:04]} Nbd7 {[%emt 0:00:05]} 8. Bd3 {[%emt 0:00:05]} Bd6 {[%emt 0:00:11]} 9. h3 {[%emt 0:00:36]} c6 {[%emt 0:01:15]} 10. O-O {[%emt 0:00:08]} Qc7 {[%emt 0:01:55]} 11. Qd2 {[%emt 0:00:27]} h6 {[%emt 0:05:37]} 12. Bf4 {[%emt 0:00:06]} g5 {[%emt 0:08:43]} (12... O-O $11) 13. Bxd6 $16 {[%emt 0:00:54]} Qxd6 {[%emt 0:00:18]} 14. Qe2 {[%emt 0:19:10]} (14. a4 $14) 14... Rg8 $11 {[%emt 0:07:03]} 15. Nd2 {[%emt 0:04:22]} g4 $1 {[%emt 0:05:34]} 16. h4 {[%emt 0:02:23]} g3 $1 {[%emt 0:12:07]} 17. e4 {[%emt 0:00:16]} Ng4 {[%emt 0:10:56]} (17... gxf2+ $5 18. Qxf2 Qb4 (18... Ng4 19. Qf4 $11) 19. exd5 cxd5 $14) 18. fxg3 $1 {[%emt 0:05:00]} Qxg3 $40 {[%emt 0:06:53][%mdl 128] Black is out for blood.} 19. Nf3 {[%emt 0:00:05] [#] Wards off Qh2+} Ne3 {[%emt 0:01:37]} 20. Rf2 {[%emt 0:00:02]} Bh3 {[%emt 0:06:14][%cal Rh3g2]} 21. Ne1 $2 {[%emt 0:03:17][%mdl 8192]} (21. Qxe3 $11 Bxg2 22. Bf1 (22. exd5+ Kd8 $11) 22... Bxf3+ 23. Bg2 Bxe4 (23... Bxg2 24. Qxg3 Rxg3 25. Rxg2 $15) 24. Qxg3 Rxg3 25. Nxe4 dxe4 26. Re1) 21... Ng4 $1 $19 {[%emt 0:02:09] ( -> ...Qh2+)} 22. exd5+ {[%emt 0:00:22] [#]} Nde5 $1 {[%emt 0:01:07][%mdl 512]} 23. Qxe5+ {[%emt 0:02:40]} (23. dxe5 $2 Qh2+ 24. Kf1 Qh1#) 23... Nxe5 {[%emt 0:00:16]} 24. Ne4 {[%emt 0:00:07]} Qe3 {[%emt 0:09:33]} (24... Qxh4 25. Nf6+ Kf8 (25... Ke7 26. dxe5 Rg3 27. d6+ Kd8 28. Nf3 $17) 26. dxe5 $19) 25. Nf6+ {[%emt 0:00:18]} Kf8 {[%emt 0:17:39]} 26. dxe5 {[%emt 0:00:05]} Rg3 {[%emt 0:04:54]} 27. e6 {[%emt 0:03:28] [#]} Bxe6 $2 {[%emt 0:04:49]} 28. dxe6 $11 {[%emt 0:00:55]} Qxe6 {[%emt 0:00:02]} 29. Bc2 $2 {[%emt 0:02:11]} (29. Rd1 $1 $11) 29... Rd8 {[%emt 0:01:19]} (29... Re3 $1 $17 {[%cal Re3e1]} 30. Nd3 Re2) 30. Bb3 $15 {[%emt 0:00:49]} Rxb3 {[%emt 0:00:39]} ({Black should play} 30... Qe5 $17 {...Rd6 would now be deadly.} 31. Nc2 Qxb2) 31. axb3 $11 {[%emt 0:00:03]} Qxb3 {[%emt 0:01:21]} 32. Nf3 {[%emt 0:03:07]} Rd1+ {[%emt 0:01:51]} 33. Rxd1 {[%emt 0:00:00]} Qxd1+ {[%emt 0:00:01]} 34. Rf1 {[%emt 0:00:01]} Qd6 {[%emt 0:00:33]} 35. Ne5 {[%emt 0:05:06][%cal Oe5g6]} Qd4+ {[%emt 0:00:07]} (35... Qxe5 $2 36. Nd7+ Ke7 37. Nxe5 $18) 36. Rf2 {[%emt 0:00:00]} Kg7 {[%emt 0:01:37] [#] Prevents h5} (36... Qxe5 $2 {loses.} 37. Nd7+ Ke7 38. Nxe5 $18) (36... Ke7 $11 {remains equal.} 37. Ng8+ Kf8) 37. Neg4 $1 $16 {[%emt 0:04:39] A dynamic duo of knights.} a5 {[%emt 0:00:24] [#]} 38. Kh2 $1 {[%emt 0:00:25] Dancing on a razor blade.} a4 $2 {[%emt 0:00:19]} (38... Qd6+ $16 39. Kh3 Qd1) 39. Re2 $18 {[%emt 0:00:37]} h5 $2 {[%emt 0:00:42]} (39... Kg6) 40. Nxh5+ {[%emt 0:00:01]} Kg6 {[%emt 0:00:16]} 41. Nhf6 {[%emt 0:00:09] Hoping for h5+.} Qf4+ {[%emt 0:00:00]} 42. g3 {[%emt 0:00:00]} Qc1 {[%emt 0:00:00]} 43. h5+ {[%emt 0:00:00][%cal Bh4h5,Bh5h6,Bh6h7][%mdl 32]} Kg7 {[%emt 0:00:00]} 44. h6+ {[%emt 0:00:00]} Kg6 {[%emt 0:00:00]} 45. h7 {[%emt 0:00:00]} Qd1 {[%emt 0:00:00]} 46. Re8 {[%emt 0:00:00]} (46. h8=R Qxe2+ 47. Kh3 Qxb2 48. Rg8+ Kf5 $19) 46... Qc2+ {[%emt 0:00:00]} 47. Kh3 {[%emt 0:00:00]} Qd1 {[%emt 0:04:25]} 1-0

[Event "13th Palmanova Festival A 2024"]
[Site "Palmanova"]
[Date "2024.12.29"]
[Round "3.6"]
[White "Lumachi, Gabriele"]
[Black "Perossa, Nicolas"]
[Result "1-0"]
[ECO "D32"]
[WhiteElo "2438"]
[BlackElo "2259"]
[Annotator "TA"]
[PlyCount "91"]
[EventDate "2024.12.27"]
[EventCountry "ITA"]
[SourceTitle "playchess.com"]
[Source "ChessBase"]
[SourceQuality "1"]
[TimeControl "6000+30"]

{[%evp 21,91,28,38,36,100,108,123,127,129,128,117,127,124,134,114,124,129,131,127,125,128,125,136,127,128,140,139,128,133,122,139,145,150,133,224,223,195,172,201,180,211,164,230,168,289,244,355,355,344,336,289,128,1284,1091,5608,5073,5795,1661,4790,4891,4578,4144,29979,29980,29980,29981,29981,29982,29983,29982,29986,29987]} 1. c4 {[%emt 0:03:02]} e6 {[%emt 0:00:04]} 2. Nf3 {[%emt 0:01:14]} d5 {[%emt 0:00:12]} 3. e3 {[%emt 0:00:53]} Nf6 {[%emt 0:00:11]} 4. b3 {[%emt 0:00:40]} Be7 {[%emt 0:01:37]} 5. Bb2 {[%emt 0:00:11]} O-O {[%emt 0:01:20]} 6. Nc3 {[%emt 0:00:30]} c5 {[%emt 0:01:27]} 7. cxd5 {[%emt 0:00:11]} exd5 {[%emt 0:07:00]} 8. d4 {[%emt 0:00:08]} Nc6 {[%emt 0:00:01]} 9. Be2 {[%emt 0:00:07]} Bg4 {[%emt 0:01:14]} 10. dxc5 {[%emt 0:00:32]} Bxc5 {[%emt 0:13:04]} 11. O-O {[%emt 0:00:07]} a6 {[%emt 0:07:55]} 12. h3 {[%emt 0:01:41]} Bxf3 {[%emt 0:04:17]} (12... Be6 $14) 13. Bxf3 $16 {[%emt 0:00:26][%cal Oa1c1]} d4 {[%emt 0:03:16]} 14. Na4 {[%emt 0:01:34]} Ba7 {[%emt 0:00:29]} 15. Bxc6 {[%emt 0:17:34]} bxc6 {[%emt 0:00:05]} 16. Bxd4 {[%emt 0:00:42]} Bxd4 {[%emt 0:00:09]} 17. Qxd4 {[%emt 0:03:00]} Qxd4 {[%emt 0:00:07]} 18. exd4 {[%emt 0:00:06]} Rfd8 {[%emt 0:04:24]} 19. Rfd1 {[%emt 0:01:55]} Nd5 {[%emt 0:00:11]} 20. Rac1 {[%emt 0:01:13]} Rd6 {[%emt 0:03:19]} 21. g3 {[%emt 0:06:26]} h5 {[%emt 0:03:07]} 22. h4 {[%emt 0:00:24]} f5 {[%emt 0:21:39][%cal Bf7f5,Bf5f4][%mdl 32]} 23. Nc3 {[%emt 0:01:10]} f4 {[%emt 0:03:40]} 24. Nxd5 {[%emt 0:11:39]} cxd5 {[%emt 0:00:18][%mdl 4096] Endgame KRR-KRR. White is a pawn up.} 25. Kg2 {[%emt 0:02:07]} (25. gxf4 $6 Rf8 $11) 25... fxg3 {[%emt 0:05:03]} 26. fxg3 {[%emt 0:00:20]} Re8 {[%emt 0:03:14]} 27. Re1 {[%emt 0:02:21] Against Re2+} Rde6 {[%emt 0:02:02]} (27... Re4 $16) 28. Rxe6 $18 {[%emt 0:02:37]} Rxe6 {[%emt 0:00:00] KR-KR. White is a pawn up.} 29. Rc5 $1 {[%emt 0:29:12]} Re2+ {[%emt 0:00:06]} 30. Kf3 {[%emt 0:00:03]} Rxa2 {[%emt 0:00:05]} 31. Rxd5 {[%emt 0:00:06]} g6 {[%emt 0:05:07]} (31... Ra3 {is a better defense.}) 32. Rd6 {[%emt 0:07:14]} Kg7 {[%emt 0:06:27]} (32... Kf7 $142 33. Rb6 a5) 33. Rb6 {[%emt 0:01:00]} a5 {[%emt 0:12:16]} (33... Rc2 $142 34. Re6 (34. Rxa6 Rc3+ 35. Kf4 Rxb3 $14) 34... Rd2) 34. Kf4 {[%emt 0:11:41]} Rf2+ {[%emt 0:02:10]} 35. Ke5 {[%emt 0:00:05]} Rf3 {[%emt 0:01:46] [#]} 36. d5 {[%emt 0:01:16]} (36. Rb7+ $1 $18 {and the rest is easy.} Kf8 37. Ke6) 36... Re3+ $2 {[%emt 0:00:28][%mdl 8192] [#]} (36... Kf7 $16 37. Kd6 Rd3) 37. Kd6 $1 {[%emt 0:01:03]} Rxg3 {[%emt 0:00:07]} 38. Kc7 {[%emt 0:01:07]} Kf7 {[%emt 0:00:56]} 39. d6 {[%emt 0:01:17] d7 would kill now.} Rd3 {[%emt 0:00:04]} 40. Rc6 {[%emt 0:00:07]} Ke6 {[%emt 0:00:59]} 41. Rc1 {[%emt 0:00:59]} Rxb3 {[%emt 0:00:00]} 42. d7 {[%emt 0:00:00]} Rd3 {[%emt 0:00:00]} 43. d8=Q {[%emt 0:00:00]} Rxd8 {[%emt 0:00:00]} 44. Kxd8 {[%emt 0:00:00]} Kf5 {[%emt 0:00:00]} 45. Rc4 {[%emt 0:00:00]} g5 {[%emt 0:00:00]} 46. Rc5+ {[%emt 0:00:00]} 1-0